[Event "Live Chess"]
[Site "Chess.com"]
[Date "2024.06.02"]
[Round "-"]
[White "Dhaydon19"]
[Black "booktrunk"]
[Result "1-0"]
[WhiteElo "2673"]
[BlackElo "1515"]
[TimeControl "300"]
[EndTime "21:09:38 PDT"]
[Termination "Dhaydon19 won by resignation"]

1. c4 {[%clk 0:04:57.8]} 1... Nc6 {[%clk 0:04:57.6]} 2. Nf3 {[%clk 0:04:57]}
2... Nf6 {[%clk 0:04:55]} 3. Nc3 {[%clk 0:04:54.6]} 3... e6 {[%clk 0:04:54.1]}
4. g3 {[%clk 0:04:53.5]} 4... d6 {[%clk 0:04:42.2]} 5. d4 {[%clk 0:04:51.6]}
5... Be7 {[%clk 0:04:15.1]} 6. Bg2 {[%clk 0:04:49.4]} 6... O-O {[%clk
0:03:57.3]} 7. O-O {[%clk 0:04:47.6]} 7... Bd7 {[%clk 0:03:45.1]} 8. d5 {[%clk
0:04:46.1]} 8... exd5 {[%clk 0:03:33.8]} 9. cxd5 {[%clk 0:04:43.6]} 9... Nb8
{[%clk 0:03:30.3]} 10. Nd4 {[%clk 0:04:41.4]} 10... c6 {[%clk 0:03:28.3]} 11.
dxc6 {[%clk 0:04:39.9]} 11... Nxc6 {[%clk 0:03:26.6]} 12. Ndb5 {[%clk
0:04:36.9]} 12... Be6 {[%clk 0:03:19.5]} 13. Bf4 {[%clk 0:04:33]} 13... d5
{[%clk 0:03:10.5]} 14. Nd4 {[%clk 0:04:28.2]} 14... Bd6 {[%clk 0:03:03.7]} 15.
Bg5 {[%clk 0:04:24.8]} 15... h6 {[%clk 0:03:01]} 16. Be3 {[%clk 0:04:22.3]}
16... Nxd4 {[%clk 0:02:55.6]} 17. Bxd4 {[%clk 0:04:21.1]} 17... b6 {[%clk
0:02:50.4]} 18. Rc1 {[%clk 0:04:19.2]} 18... Bc5 {[%clk 0:02:48.1]} 19. a3
{[%clk 0:04:16.5]} 19... Bxd4 {[%clk 0:02:46.3]} 20. Qxd4 {[%clk 0:04:14.6]}
20... Rc8 {[%clk 0:02:43.4]} 21. Rfd1 {[%clk 0:04:13.2]} 21... Re8 {[%clk
0:02:38.8]} 22. Nb5 {[%clk 0:04:08.7]} 22... Qd7 {[%clk 0:02:34.6]} 23. Nc3
{[%clk 0:04:06.5]} 23... Red8 {[%clk 0:02:29.2]} 24. e3 {[%clk 0:04:02.8]} 24...
Rc4 {[%clk 0:02:27.8]} 25. Qxc4 {[%clk 0:04:00.1]} 25... dxc4 {[%clk 0:02:25.5]}
26. Rxd7 {[%clk 0:03:58.7]} 26... Rxd7 {[%clk 0:02:24.4]} 27. Rd1 {[%clk
0:03:56.1]} 27... Rxd1+ {[%clk 0:02:22.2]} 28. Nxd1 {[%clk 0:03:55.7]} 28... Nd5
{[%clk 0:02:18.6]} 29. Bxd5 {[%clk 0:03:53]} 29... Bxd5 {[%clk 0:02:17]} 30. Nc3
{[%clk 0:03:52.7]} 30... Be6 {[%clk 0:02:15.3]} 31. f3 {[%clk 0:03:50.7]} 31...
Kf8 {[%clk 0:02:15.1]} 32. e4 {[%clk 0:03:49.8]} 32... Ke7 {[%clk 0:02:13.4]}
33. Kf2 {[%clk 0:03:49.5]} 33... g6 {[%clk 0:02:11.7]} 34. Ke3 {[%clk
0:03:49.1]} 34... f5 {[%clk 0:02:10.4]} 35. e5 {[%clk 0:03:46.9]} 35... Kd7
{[%clk 0:02:09.3]} 36. f4 {[%clk 0:03:45.5]} 36... Kc6 {[%clk 0:02:07.3]} 37.
Kd4 {[%clk 0:03:45.1]} 37... a6 {[%clk 0:02:04.8]} 38. Na2 {[%clk 0:03:43.9]}
38... b5 {[%clk 0:02:02.9]} 39. Nb4+ {[%clk 0:03:42.7]} 39... Kb6 {[%clk
0:02:00.7]} 40. Nc2 {[%clk 0:03:42.2]} 40... Kc6 {[%clk 0:01:59.2]} 41. Ne3
{[%clk 0:03:41.2]} 41... h5 {[%clk 0:01:56.3]} 42. h3 {[%clk 0:03:40.1]} 42...
a5 {[%clk 0:01:51]} 43. Nc2 {[%clk 0:03:37.5]} 43... Bd7 {[%clk 0:01:46.8]} 44.
Ne3 {[%clk 0:03:28.2]} 44... Be6 {[%clk 0:01:45.2]} 45. Ng2 {[%clk 0:03:26.9]}
45... b4 {[%clk 0:01:43.7]} 46. axb4 {[%clk 0:03:24.9]} 46... axb4 {[%clk
0:01:42.6]} 47. Nh4 {[%clk 0:03:24.6]} 47... Bf7 {[%clk 0:01:40.5]} 48. e6
{[%clk 0:03:22.1]} 48... Bxe6 {[%clk 0:01:39.1]} 49. Nxg6 {[%clk 0:03:21.1]}
49... Bf7 {[%clk 0:01:38.1]} 50. Ne7+ {[%clk 0:03:20.1]} 50... Kb5 {[%clk
0:01:35.8]} 51. Nxf5 {[%clk 0:03:18.3]} 51... Bg6 {[%clk 0:01:33.6]} 52. Nd6+
{[%clk 0:03:14.6]} 52... Ka4 {[%clk 0:01:29.9]} 53. Nxc4 {[%clk 0:03:13.4]}
53... Bf7 {[%clk 0:01:28.3]} 54. Ne5 {[%clk 0:03:11.7]} 54... Be6 {[%clk
0:01:26.2]} 55. g4 {[%clk 0:03:10.9]} 55... hxg4 {[%clk 0:01:25]} 56. hxg4
{[%clk 0:03:10.5]} 56... Kb3 {[%clk 0:01:23.2]} 57. f5 {[%clk 0:03:09.4]} 57...
Bg8 {[%clk 0:01:21.4]} 58. Nd3 {[%clk 0:03:08.5]} 58... Kc2 {[%clk 0:01:19.3]}
59. Nxb4+ {[%clk 0:03:07.2]} 59... Kxb2 {[%clk 0:01:18.5]} 60. g5 {[%clk
0:03:05.6]} 60... Kb3 {[%clk 0:01:18]} 61. Nd5 {[%clk 0:03:04.3]} 61... Kc2
{[%clk 0:01:15.8]} 62. g6 {[%clk 0:03:03]} 62... Kd2 {[%clk 0:01:15.7]} 63. f6
{[%clk 0:03:02.2]} 63... Ke2 {[%clk 0:01:13.4]} 64. f7 {[%clk 0:03:01.2]} 64...
Bxf7 {[%clk 0:01:12.5]} 65. gxf7 {[%clk 0:03:00.9]} 65... Ke1 {[%clk 0:01:11]}
66. f8=Q {[%clk 0:02:59.2]} 1-0

[Event "Live Chess"]
[Site "Chess.com"]
[Date "2024.06.02"]
[Round "-"]
[White "RuslanChessN"]
[Black "IgorSchukin"]
[Result "1-0"]
[WhiteElo "1910"]
[BlackElo "1767"]
[TimeControl "300"]
[EndTime "21:10:11 PDT"]
[Termination "RuslanChessN won on time"]

1. d4 {[%clk 0:04:57.6]} 1... d5 {[%clk 0:04:58.7]} 2. c4 {[%clk 0:04:57.5]}
2... e5 {[%clk 0:04:57.6]} 3. Nc3 {[%clk 0:04:57.4]} 3... dxc4 {[%clk
0:04:56.7]} 4. d5 {[%clk 0:04:55.3]} 4... Nf6 {[%clk 0:04:55.6]} 5. e4 {[%clk
0:04:53.9]} 5... Bd6 {[%clk 0:04:55.1]} 6. Bxc4 {[%clk 0:04:51.7]} 6... O-O
{[%clk 0:04:54.7]} 7. Bg5 {[%clk 0:04:39.5]} 7... h6 {[%clk 0:04:53.2]} 8. Bh4
{[%clk 0:04:38.2]} 8... Nbd7 {[%clk 0:04:51]} 9. Nf3 {[%clk 0:04:35.4]} 9... a6
{[%clk 0:04:50]} 10. a4 {[%clk 0:04:33.3]} 10... g5 {[%clk 0:04:45.8]} 11. Bg3
{[%clk 0:04:19.3]} 11... Kg7 {[%clk 0:04:43.9]} 12. h4 {[%clk 0:04:16.9]} 12...
g4 {[%clk 0:04:42.1]} 13. Nd2 {[%clk 0:04:13.9]} 13... Nb6 {[%clk 0:04:36.6]}
14. h5 {[%clk 0:04:04.2]} 14... Nxc4 {[%clk 0:04:31.4]} 15. Nxc4 {[%clk
0:04:01.6]} 15... Re8 {[%clk 0:04:21.8]} 16. f3 {[%clk 0:03:43.9]} 16... Bd7
{[%clk 0:04:15.4]} 17. Qe2 {[%clk 0:03:30.6]} 17... b5 {[%clk 0:04:10.1]} 18.
Ne3 {[%clk 0:03:20.9]} 18... b4 {[%clk 0:03:53.1]} 19. Ncd1 {[%clk 0:03:15.1]}
19... c6 {[%clk 0:03:45.7]} 20. dxc6 {[%clk 0:03:04.6]} 20... Bxc6 {[%clk
0:03:43.6]} 21. Nf2 {[%clk 0:03:04.1]} 21... gxf3 {[%clk 0:03:37.1]} 22. gxf3
{[%clk 0:03:00.2]} 22... Bc5 {[%clk 0:03:31.8]} 23. Nd3 {[%clk 0:02:17.8]} 23...
Bxe3 {[%clk 0:03:04.5]} 24. Qxe3 {[%clk 0:02:17.7]} 24... Qd4 {[%clk 0:02:54.5]}
25. Ke2 {[%clk 0:01:59.9]} 25... Qxe3+ {[%clk 0:02:11.1]} 26. Kxe3 {[%clk
0:01:58.1]} 26... a5 {[%clk 0:02:09.8]} 27. Bxe5 {[%clk 0:01:53.7]} 27... Re6
{[%clk 0:01:59.6]} 28. Bd4 {[%clk 0:01:31.2]} 28... Kf8 {[%clk 0:01:49.2]} 29.
Nc5 {[%clk 0:01:27.6]} 29... Nd5+ {[%clk 0:01:37.6]} 30. Kf2 {[%clk 0:01:18.2]}
30... Nf4 {[%clk 0:01:29.7]} 31. Nxe6+ {[%clk 0:01:15.7]} 31... fxe6 {[%clk
0:01:28.4]} 32. Rad1 {[%clk 0:01:06.7]} 32... Kf7 {[%clk 0:01:22.7]} 33. b3
{[%clk 0:01:05]} 33... Rg8 {[%clk 0:01:13.3]} 34. Be5 {[%clk 0:00:53.8]} 34...
Nd5 {[%clk 0:00:31.5]} 35. exd5 {[%clk 0:00:51.6]} 35... Bxd5 {[%clk 0:00:30.3]}
36. Rd3 {[%clk 0:00:45.1]} 36... Rc8 {[%clk 0:00:27.2]} 37. Rhd1 {[%clk
0:00:36]} 37... Rc5 {[%clk 0:00:23.3]} 38. Bd4 {[%clk 0:00:32.2]} 38... Rc2+
{[%clk 0:00:21.4]} 39. R1d2 {[%clk 0:00:27.8]} 39... Rc1 {[%clk 0:00:20.2]} 40.
Bb6 {[%clk 0:00:22.3]} 40... Rb1 {[%clk 0:00:15.7]} 41. Bxa5 {[%clk 0:00:19.7]}
41... Bxb3 {[%clk 0:00:14.4]} 42. Bxb4 {[%clk 0:00:16.9]} 42... Bxa4 {[%clk
0:00:12.5]} 43. Re3 {[%clk 0:00:09.1]} 43... Rh1 {[%clk 0:00:09.5]} 44. Rde2
{[%clk 0:00:09]} 44... Rxh5 {[%clk 0:00:07.6]} 45. Kg3 {[%clk 0:00:08.9]} 45...
Bb3 {[%clk 0:00:05.8]} 46. Kf4 {[%clk 0:00:08.8]} 46... Bd5 {[%clk 0:00:04.1]}
47. Rb3 {[%clk 0:00:08.7]} 47... Rf5+ {[%clk 0:00:01.4]} 48. Kg3 {[%clk
0:00:05.4]} 48... Rg5+ {[%clk 0:00:00.6]} 49. Kf4 {[%clk 0:00:04]} 1-0

[Event "Live Chess"]
[Site "Chess.com"]
[Date "2024.06.02"]
[Round "-"]
[White "KeithArkell"]
[Black "Mangoalo"]
[Result "1-0"]
[WhiteElo "2422"]
[BlackElo "1066"]
[TimeControl "300"]
[EndTime "21:12:21 PDT"]
[Termination "KeithArkell won by checkmate"]

1. d4 {[%clk 0:04:55.9]} 1... Nf6 {[%clk 0:04:58]} 2. Nf3 {[%clk 0:04:55.2]}
2... e6 {[%clk 0:04:56.2]} 3. c4 {[%clk 0:04:54.5]} 3... Bb4+ {[%clk 0:04:55.7]}
4. Bd2 {[%clk 0:04:53.5]} 4... Bxd2+ {[%clk 0:04:54.9]} 5. Qxd2 {[%clk
0:04:53.1]} 5... c5 {[%clk 0:04:53.9]} 6. Nc3 {[%clk 0:04:52.6]} 6... cxd4
{[%clk 0:04:51.8]} 7. Nxd4 {[%clk 0:04:51.7]} 7... Nc6 {[%clk 0:04:50.2]} 8.
Nxc6 {[%clk 0:04:51]} 8... bxc6 {[%clk 0:04:50.1]} 9. c5 {[%clk 0:04:49.7]} 9...
Ba6 {[%clk 0:04:49.3]} 10. e4 {[%clk 0:04:47.8]} 10... Bxf1 {[%clk 0:04:48.2]}
11. Kxf1 {[%clk 0:04:47.2]} 11... O-O {[%clk 0:04:44.9]} 12. g3 {[%clk
0:04:45.7]} 12... Qa5 {[%clk 0:04:42]} 13. Qd4 {[%clk 0:04:42.9]} 13... Rad8
{[%clk 0:04:34.2]} 14. e5 {[%clk 0:04:41.5]} 14... Nd5 {[%clk 0:04:32.1]} 15.
Kg2 {[%clk 0:04:40.2]} 15... Nxc3 {[%clk 0:04:28.9]} 16. Qxc3 {[%clk 0:04:39.5]}
16... Qxc3 {[%clk 0:04:25.8]} 17. bxc3 {[%clk 0:04:39.4]} 17... a6 {[%clk
0:04:24.3]} 18. Rab1 {[%clk 0:04:38.7]} 18... Rb8 {[%clk 0:04:22.7]} 19. Rhd1
{[%clk 0:04:36.2]} 19... Rb5 {[%clk 0:04:20.2]} 20. Rxb5 {[%clk 0:04:34.4]}
20... axb5 {[%clk 0:04:18]} 21. Rxd7 {[%clk 0:04:33.3]} 21... Ra8 {[%clk
0:04:15.2]} 22. Rc7 {[%clk 0:04:32.6]} 22... g6 {[%clk 0:04:04.1]} 23. Rxc6
{[%clk 0:04:30.2]} 23... Rxa2 {[%clk 0:04:02.6]} 24. Rb6 {[%clk 0:04:19]} 24...
Rc2 {[%clk 0:03:59.8]} 25. Rxb5 {[%clk 0:04:18]} 25... Rxc3 {[%clk 0:03:58.9]}
26. Rb8+ {[%clk 0:04:13.6]} 26... Kg7 {[%clk 0:03:56.3]} 27. Rc8 {[%clk
0:04:12.6]} 27... f5 {[%clk 0:03:53.5]} 28. Rc7+ {[%clk 0:04:08.8]} 28... Kh6
{[%clk 0:03:51.6]} 29. h4 {[%clk 0:04:04.7]} 29... Rc2 {[%clk 0:03:36.6]} 30.
Kf3 {[%clk 0:04:02.3]} 30... Rc3+ {[%clk 0:03:24.1]} 31. Ke2 {[%clk 0:04:00.4]}
31... g5 {[%clk 0:03:21.9]} 32. hxg5+ {[%clk 0:03:57.5]} 32... Kxg5 {[%clk
0:03:21.8]} 33. Rxh7 {[%clk 0:03:53.5]} 33... Rxc5 {[%clk 0:03:20.1]} 34. f4+
{[%clk 0:03:52.7]} 34... Kg6 {[%clk 0:03:18.1]} 35. Re7 {[%clk 0:03:51.1]} 35...
Rc6 {[%clk 0:03:15.9]} 36. Kf3 {[%clk 0:03:49.3]} 36... Rc3+ {[%clk 0:03:14]}
37. Kg2 {[%clk 0:03:48.6]} 37... Rc2+ {[%clk 0:03:12.9]} 38. Kh3 {[%clk
0:03:47.9]} 38... Rc6 {[%clk 0:03:11.6]} 39. Kh4 {[%clk 0:03:47.2]} 39... Rc3
{[%clk 0:03:03]} 40. Rxe6+ {[%clk 0:03:45.6]} 40... Kf7 {[%clk 0:03:01.5]} 41.
Rf6+ {[%clk 0:03:44.6]} 41... Kg7 {[%clk 0:03:00.4]} 42. Rxf5 {[%clk 0:03:44.1]}
42... Rc6 {[%clk 0:02:59.2]} 43. g4 {[%clk 0:03:42.2]} 43... Rh6+ {[%clk
0:02:58.2]} 44. Kg3 {[%clk 0:03:41]} 44... Kg8 {[%clk 0:02:55.4]} 45. Rf6 {[%clk
0:03:40.1]} 45... Rh7 {[%clk 0:02:53.3]} 46. e6 {[%clk 0:03:39]} 46... Re7
{[%clk 0:02:52]} 47. f5 {[%clk 0:03:37.8]} 47... Rg7 {[%clk 0:02:46.9]} 48. Rg6
{[%clk 0:03:36.7]} 48... Kf8 {[%clk 0:02:37.8]} 49. Rxg7 {[%clk 0:03:35.3]}
49... Kxg7 {[%clk 0:02:37.7]} 50. g5 {[%clk 0:03:34.8]} 50... Kf8 {[%clk
0:02:36.7]} 51. g6 {[%clk 0:03:34.3]} 51... Ke7 {[%clk 0:02:35]} 52. g7 {[%clk
0:03:33.4]} 52... Kf6 {[%clk 0:02:33.8]} 53. g8=Q {[%clk 0:03:31.9]} 53... Kxf5
{[%clk 0:02:32.6]} 54. e7 {[%clk 0:03:30.9]} 54... Kf6 {[%clk 0:02:31.4]} 55.
e8=Q {[%clk 0:03:29.3]} 55... Kf5 {[%clk 0:02:30.3]} 56. Qee6# {[%clk
0:03:28.6]} 1-0

[Event "Live Chess"]
[Site "Chess.com"]
[Date "2024.06.02"]
[Round "-"]
[White "NeilDruggan73"]
[Black "Mikhail_Golubev"]
[Result "0-1"]
[WhiteElo "1766"]
[BlackElo "2520"]
[TimeControl "300"]
[EndTime "21:12:37 PDT"]
[Termination "Mikhail_Golubev won by resignation"]

1. d4 {[%clk 0:04:58.6]} 1... g6 {[%clk 0:04:55.3]} 2. Bg5 {[%clk 0:04:55]} 2...
Bg7 {[%clk 0:04:52.6]} 3. e4 {[%clk 0:04:46.4]} 3... c5 {[%clk 0:04:49.2]} 4. c3
{[%clk 0:04:45]} 4... cxd4 {[%clk 0:04:43.4]} 5. cxd4 {[%clk 0:04:43.7]} 5...
Qb6 {[%clk 0:03:36.5]} 6. Be3 {[%clk 0:04:24.9]} 6... Nc6 {[%clk 0:03:17.4]} 7.
Qd2 {[%clk 0:04:10.5]} 7... Bxd4 {[%clk 0:03:10.4]} 8. Bxd4 {[%clk 0:04:08.2]}
8... Qxd4 {[%clk 0:03:07.5]} 9. Qxd4 {[%clk 0:04:06.5]} 9... Nxd4 {[%clk
0:03:07.4]} 10. Bd3 {[%clk 0:04:03.7]} 10... d6 {[%clk 0:02:57.4]} 11. Ne2
{[%clk 0:04:00.9]} 11... Nc6 {[%clk 0:02:51.2]} 12. a3 {[%clk 0:03:58.6]} 12...
Nf6 {[%clk 0:02:50.1]} 13. f3 {[%clk 0:03:57.2]} 13... O-O {[%clk 0:02:37.4]}
14. Nbc3 {[%clk 0:03:56]} 14... Bd7 {[%clk 0:02:30.5]} 15. g4 {[%clk 0:03:53.4]}
15... Ne5 {[%clk 0:02:27.5]} 16. g5 {[%clk 0:02:41.5]} 16... Nxf3+ {[%clk
0:02:22.8]} 17. Kf2 {[%clk 0:02:39.9]} 17... Nxg5 {[%clk 0:02:21.7]} 18. h4
{[%clk 0:02:27.3]} 18... Ne6 {[%clk 0:02:19.8]} 19. Nd5 {[%clk 0:02:25.7]} 19...
Nxd5 {[%clk 0:02:17]} 20. exd5 {[%clk 0:02:24.7]} 20... Nc5 {[%clk 0:02:15.9]}
21. Bc2 {[%clk 0:02:20.7]} 21... Bb5 {[%clk 0:02:00.7]} 22. Nd4 {[%clk
0:02:08.8]} 22... Bd3 {[%clk 0:01:58.3]} 23. h5 {[%clk 0:02:03.7]} 23... Bxc2
{[%clk 0:01:55.4]} 24. Nxc2 {[%clk 0:02:01.7]} 24... Rac8 {[%clk 0:01:37.9]} 25.
Nd4 {[%clk 0:01:55.9]} 25... Nd3+ {[%clk 0:01:37]} 26. Ke3 {[%clk 0:01:53.7]}
26... Ne5 {[%clk 0:01:35.7]} 27. hxg6 {[%clk 0:01:48.8]} 27... hxg6 {[%clk
0:01:32.2]} 28. Rh4 {[%clk 0:01:41.7]} 28... Kg7 {[%clk 0:01:30.5]} 29. Rah1
{[%clk 0:01:39.3]} 29... Rh8 {[%clk 0:01:29.1]} 30. Rxh8 {[%clk 0:01:37.9]}
30... Rxh8 {[%clk 0:01:27.7]} 31. Rxh8 {[%clk 0:01:35.1]} 31... Kxh8 {[%clk
0:01:27.4]} 32. b4 {[%clk 0:01:31.2]} 32... Kg7 {[%clk 0:01:17.1]} 33. Nb5
{[%clk 0:01:28.9]} 33... a6 {[%clk 0:01:16.1]} 34. Nc3 {[%clk 0:01:19]} 34...
Nc4+ {[%clk 0:01:14]} 35. Kd4 {[%clk 0:01:16.1]} 35... Nxa3 {[%clk 0:01:13.9]}
36. b5 {[%clk 0:01:14.6]} 36... Nxb5+ {[%clk 0:01:12.6]} 37. Nxb5 {[%clk
0:01:13.9]} 37... axb5 {[%clk 0:01:12.5]} 0-1

[Event "Live Chess"]
[Site "Chess.com"]
[Date "2024.06.02"]
[Round "-"]
[White "booktrunk"]
[Black "IgorSchukin"]
[Result "0-1"]
[WhiteElo "1512"]
[BlackElo "1770"]
[TimeControl "300"]
[EndTime "21:13:30 PDT"]
[Termination "IgorSchukin won by resignation"]

1. d4 {[%clk 0:04:55.6]} 1... d5 {[%clk 0:04:59.1]} 2. Nc3 {[%clk 0:04:51.6]}
2... Nf6 {[%clk 0:04:58.5]} 3. a3 {[%clk 0:04:44.4]} 3... g6 {[%clk 0:04:57.1]}
4. Bf4 {[%clk 0:04:43.3]} 4... c6 {[%clk 0:04:55.4]} 5. f3 {[%clk 0:04:40.7]}
5... Bg7 {[%clk 0:04:55]} 6. e3 {[%clk 0:04:31.2]} 6... O-O {[%clk 0:04:53.6]}
7. Bd3 {[%clk 0:04:28.8]} 7... Re8 {[%clk 0:04:52.2]} 8. h4 {[%clk 0:04:26.2]}
8... Bf5 {[%clk 0:04:50.9]} 9. Bxf5 {[%clk 0:04:24]} 9... gxf5 {[%clk
0:04:49.7]} 10. g4 {[%clk 0:04:17.3]} 10... fxg4 {[%clk 0:04:47.8]} 11. fxg4
{[%clk 0:04:15.5]} 11... Nbd7 {[%clk 0:04:43.8]} 12. g5 {[%clk 0:04:14.4]} 12...
Ne4 {[%clk 0:04:42]} 13. Nxe4 {[%clk 0:04:12.4]} 13... dxe4 {[%clk 0:04:40.7]}
14. c3 {[%clk 0:04:11.5]} 14... e5 {[%clk 0:04:39.5]} 15. dxe5 {[%clk
0:04:06.1]} 15... Nxe5 {[%clk 0:04:37.6]} 16. Qxd8 {[%clk 0:04:04.6]} 16...
Raxd8 {[%clk 0:04:35.9]} 17. Ne2 {[%clk 0:04:00.9]} 17... Nd3+ {[%clk
0:04:34.3]} 18. Kf1 {[%clk 0:03:56]} 18... Nxb2 {[%clk 0:04:30.3]} 19. Rb1
{[%clk 0:03:53.2]} 19... Nd3 {[%clk 0:04:24.9]} 20. Rxb7 {[%clk 0:03:51.3]}
20... Nxf4 {[%clk 0:04:20.8]} 21. Nxf4 {[%clk 0:03:49.3]} 21... Rd1+ {[%clk
0:04:16]} 22. Kg2 {[%clk 0:03:47.7]} 22... Rxh1 {[%clk 0:04:14.7]} 23. Kxh1
{[%clk 0:03:45.3]} 23... Bxc3 {[%clk 0:04:13.4]} 24. Rxa7 {[%clk 0:03:42.7]}
24... Bd2 {[%clk 0:04:10.9]} 25. Nh5 {[%clk 0:03:34.5]} 25... Bxe3 {[%clk
0:03:59.2]} 26. Rc7 {[%clk 0:03:31.6]} 26... Bd4 {[%clk 0:03:51.4]} 27. Rxc6
{[%clk 0:03:28.3]} 27... e3 {[%clk 0:03:50]} 28. Nf6+ {[%clk 0:03:22]} 28...
Bxf6 {[%clk 0:03:47.8]} 29. gxf6 {[%clk 0:03:20.7]} 29... e2 {[%clk 0:03:47]}
0-1

[Event "Live Chess"]
[Site "Chess.com"]
[Date "2024.06.02"]
[Round "-"]
[White "MagnersCarlsberg2870"]
[Black "Delacorta"]
[Result "1-0"]
[WhiteElo "1829"]
[BlackElo "1514"]
[TimeControl "300"]
[EndTime "21:13:57 PDT"]
[Termination "MagnersCarlsberg2870 won by resignation"]

1. d4 {[%clk 0:04:57.4]} 1... Nf6 {[%clk 0:04:57.1]} 2. Nf3 {[%clk 0:04:55.9]}
2... g6 {[%clk 0:04:52.6]} 3. Nc3 {[%clk 0:04:54.7]} 3... Bg7 {[%clk 0:04:51.7]}
4. e4 {[%clk 0:04:53.9]} 4... d6 {[%clk 0:04:50.5]} 5. h3 {[%clk 0:04:53.3]}
5... O-O {[%clk 0:04:49.1]} 6. Bc4 {[%clk 0:04:52.3]} 6... b6 {[%clk 0:04:42.9]}
7. Qe2 {[%clk 0:04:50.8]} 7... Bb7 {[%clk 0:04:39.9]} 8. e5 {[%clk 0:04:50]}
8... dxe5 {[%clk 0:04:38.3]} 9. dxe5 {[%clk 0:04:49.1]} 9... Nd5 {[%clk
0:04:33]} 10. e6 {[%clk 0:04:45.1]} 10... Nxc3 {[%clk 0:04:28.8]} 11. bxc3
{[%clk 0:04:41.3]} 11... f6 {[%clk 0:04:18.3]} 12. Bf4 {[%clk 0:04:21.1]} 12...
Nc6 {[%clk 0:04:15]} 13. Rd1 {[%clk 0:04:19.3]} 13... Qc8 {[%clk 0:04:10]} 14.
Rd7 {[%clk 0:04:17.8]} 14... g5 {[%clk 0:03:28.3]} 15. Bg3 {[%clk 0:04:09.1]}
15... Qe8 {[%clk 0:03:21.8]} 16. Rxc7 {[%clk 0:04:05]} 16... Rb8 {[%clk
0:03:11.2]} 17. Nd4 {[%clk 0:03:58.5]} 17... Nxd4 {[%clk 0:03:10]} 18. cxd4
{[%clk 0:03:57.3]} 18... Qa4 {[%clk 0:03:08.6]} 19. O-O {[%clk 0:03:40.5]} 19...
Rbc8 {[%clk 0:02:54.3]} 20. Bb3 {[%clk 0:03:30]} 20... Qa6 {[%clk 0:02:38.8]}
21. Qxa6 {[%clk 0:03:04.9]} 21... Bxa6 {[%clk 0:02:37.2]} 22. Rxc8 {[%clk
0:03:04]} 22... Rxc8 {[%clk 0:02:35.2]} 23. Rd1 {[%clk 0:03:02.8]} 23... f5
{[%clk 0:02:12.8]} 24. d5 {[%clk 0:02:47]} 24... f4 {[%clk 0:02:11.7]} 25. Bh2
{[%clk 0:02:40.1]} 25... Be5 {[%clk 0:01:58.9]} 26. g3 {[%clk 0:02:33.5]} 26...
Bb7 {[%clk 0:01:49.6]} 27. gxf4 {[%clk 0:02:21.9]} 27... gxf4 {[%clk 0:01:48.3]}
28. Re1 {[%clk 0:02:15]} 28... Bd6 {[%clk 0:01:42.6]} 29. Re4 {[%clk 0:02:12.9]}
29... Rf8 {[%clk 0:01:36.3]} 30. f3 {[%clk 0:01:39.7]} 30... Rf6 {[%clk
0:01:34]} 31. Kf1 {[%clk 0:01:36.6]} 31... Ba6+ {[%clk 0:01:09.2]} 32. Bc4
{[%clk 0:01:34.2]} 32... Bb7 {[%clk 0:00:54.7]} 33. Bb5 {[%clk 0:01:28.2]} 33...
Kg7 {[%clk 0:00:49.9]} 34. Bd7 {[%clk 0:01:26.4]} 34... Kg6 {[%clk 0:00:44]} 35.
c4 {[%clk 0:01:16.7]} 35... Kg5 {[%clk 0:00:42.5]} 36. Bg1 {[%clk 0:01:00.6]}
36... Kh4 {[%clk 0:00:33.6]} 37. Kg2 {[%clk 0:00:57.4]} 37... Rg6+ {[%clk
0:00:30.7]} 38. Kh2 {[%clk 0:00:56.6]} 38... Ba6 {[%clk 0:00:23]} 39. Bb5 {[%clk
0:00:54.6]} 39... Bb7 {[%clk 0:00:20]} 40. Bf2+ {[%clk 0:00:49.3]} 40... Kh5
{[%clk 0:00:18.5]} 41. Be8 {[%clk 0:00:47.9]} 1-0

[Event "Live Chess"]
[Site "Chess.com"]
[Date "2024.06.02"]
[Round "-"]
[White "IgorSchukin"]
[Black "NeilDruggan73"]
[Result "1-0"]
[WhiteElo "1778"]
[BlackElo "1758"]
[TimeControl "300"]
[EndTime "21:15:54 PDT"]
[Termination "IgorSchukin won by resignation"]

1. e4 {[%clk 0:04:58.1]} 1... d6 {[%clk 0:04:58.2]} 2. Nf3 {[%clk 0:04:56.6]}
2... Nf6 {[%clk 0:04:57.3]} 3. Nc3 {[%clk 0:04:56.2]} 3... g6 {[%clk 0:04:56.3]}
4. h4 {[%clk 0:04:53.6]} 4... h5 {[%clk 0:04:53.7]} 5. d4 {[%clk 0:04:51.4]}
5... Bh6 {[%clk 0:04:51.7]} 6. Ng5 {[%clk 0:04:47]} 6... c6 {[%clk 0:04:44.6]}
7. Bc4 {[%clk 0:04:44.2]} 7... d5 {[%clk 0:04:38.1]} 8. e5 {[%clk 0:04:35.1]}
8... dxc4 {[%clk 0:04:32.8]} 9. exf6 {[%clk 0:04:33.5]} 9... exf6 {[%clk
0:04:31.9]} 10. Nge4 {[%clk 0:04:27.2]} 10... O-O {[%clk 0:04:30]} 11. Bxh6
{[%clk 0:04:25.2]} 11... Re8 {[%clk 0:04:28.7]} 12. O-O {[%clk 0:04:22.1]} 12...
b5 {[%clk 0:04:25.3]} 13. Qf3 {[%clk 0:04:18.1]} 13... Bf5 {[%clk 0:04:22.7]}
14. Rfe1 {[%clk 0:04:05.6]} 14... Kh7 {[%clk 0:04:14.5]} 15. Nxf6+ {[%clk
0:03:57.3]} 15... Qxf6 {[%clk 0:04:10.6]} 16. Rxe8 {[%clk 0:03:55.8]} 16... Kxh6
{[%clk 0:04:10.5]} 17. Ne4 {[%clk 0:03:45]} 17... Bxe4 {[%clk 0:04:08.8]} 18.
Qxf6 {[%clk 0:03:43.5]} 1-0